bitfinex-derivatives/quotes_BTCF0:USTF0_20250308
["timestamp","ask_amount","ask_price","bid_price","bid_amount"]
[1741446230635,0.2163,86348.0,86345.0,0.0912971]
[1741446230938,0.2163,86348.0,86345.0,0.2071316]
[1741446231228,0.2163,86348.0,86345.0,0.0912971]
[1741446231428,0.2163,86348.0,86346.0,0.1158337]
[1741446231933,0.2163,86348.0,86346.0,0.1795337]
[1741446232230,0.2163,86348.0,86346.0,0.0637]
[1741446232435,0.2163,86348.0,86347.0,0.1158326]
[1741446232633,0.1163,86348.0,86347.0,0.1158326]
[1741446232836,0.1163,86348.0,86347.0,0.1802326]
[1741446233332,0.003,86348.0,86347.0,1.19259418]
[1741446234722,0.002,86348.0,86347.0,1.19459418]
[1741446234938,0.00182628,86348.0,86347.0,1.19459418]
[1741446235129,0.00182628,86348.0,86347.0,1.20789712]
[1741446235336,0.00182628,86348.0,86347.0,1.20989712]
[1741446237526,0.0954,86371.0,86358.0,0.1158178]
[1741446237729,0.0954,86371.0,86358.0,1.48897938]
[1741446238734,0.0954,86371.0,86358.0,1.55217938]
[1741446240632,0.3608,86370.0,86358.0,1.55217938]
[1741446240943,0.0954,86371.0,86358.0,1.55217938]
[1741446241140,0.05017372,86359.0,86358.0,1.55217938]
[1741446241634,0.15017372,86359.0,86358.0,1.55217938]
[1741446241949,0.05017372,86359.0,86358.0,1.55317938]
[1741446242735,0.05017372,86359.0,86358.0,0.001]
[1741446243040,0.15017372,86359.0,86358.0,0.1168178]
[1741446243740,0.21087372,86359.0,86358.0,0.1168178]
[1741446244140,0.22428915,86359.0,86358.0,0.1168178]
[1741446245234,0.22528915,86359.0,86358.0,0.1158178]
[1741446245637,0.22528915,86359.0,86357.0,0.00241]
[1741446246028,0.22528915,86359.0,86357.0,0.1182291]
[1741446246231,0.22428915,86359.0,86357.0,0.1182291]
[1741446246545,0.22428915,86359.0,86357.0,0.00241]
[1741446246936,0.22428915,86359.0,86348.0,0.4187151]
[1741446246937,0.22428915,86359.0,86348.0,0.3608]
[1741446247141,0.3608,86355.0,86348.0,0.3608]
[1741446247340,0.3608,86355.0,86344.0,0.1158356]
[1741446247341,0.0613,86354.0,86344.0,0.1158356]
[1741446247537,0.1,86345.0,86344.0,0.1158356]
[1741446247733,0.15,86345.0,86344.0,0.1158356]
[1741446249841,0.16327691,86345.0,86344.0,0.1158356]
[1741446250042,0.22827691,86345.0,86344.0,0.1158356]
[1741446250241,0.26027691,86345.0,86344.0,0.1158356]
[1741446250444,0.26027691,86345.0,86342.0,0.1158389]
[1741446250644,0.26027691,86345.0,86344.0,0.1158366]
[1741446250849,0.26227691,86345.0,86344.0,0.1158366]
[1741446251035,0.26227691,86345.0,86341.0,0.00011597]
[1741446251239,0.19487691,86345.0,86341.0,0.00011597]
[1741446251550,0.31227691,86345.0,86341.0,0.00011597]
[1741446252150,0.26227691,86345.0,86341.0,1.898e-05]
[1741446253242,0.00201696,86344.0,86341.0,1.898e-05]
[1741446253645,0.0627,86343.0,86341.0,1.898e-05]
[1741446254354,0.1031,86343.0,86341.0,1.898e-05]
[1741446254543,0.1627,86343.0,86341.0,1.898e-05]
[1741446255142,0.1031,86343.0,86341.0,1.898e-05]
[1741446255345,0.1627,86343.0,86341.0,1.898e-05]
[1741446255748,0.2127,86343.0,86328.0,0.1158568]
[1741446255946,0.1,86330.0,86329.0,0.1158567]
[1741446256146,0.1,86330.0,86322.0,0.0579325]
[1741446256147,0.15,86330.0,86322.0,0.1158659]
[1741446256339,0.3608,86326.0,86323.0,1.12822628]
[1741446256548,0.0621,86325.0,86321.0,0.2317337]
[1741446256750,0.1121,86325.0,86323.0,0.1158642]
[1741446257355,0.1101,86325.0,86324.0,0.1158634]
[1741446258955,0.1407,86325.0,86323.0,0.003]
[1741446259145,0.2081,86325.0,86323.0,0.003]
[1741446259554,0.1,86324.0,86323.0,0.003]
[1741446259947,0.1826,86324.0,86323.0,0.003]
[1741446260150,0.1826,86324.0,86310.0,0.0579408]
[1741446260354,0.4934,86324.0,86313.0,1.01236158]
[1741446260554,0.4934,86324.0,86322.0,0.115866]
[1741446260555,0.1326,86324.0,86322.0,0.115866]
[1741446260767,0.1326,86324.0,86323.0,0.1158648]
[1741446260768,0.0731,86324.0,86323.0,0.1158648]
[1741446261049,0.0731,86324.0,86323.0,0.1488648]
[1741446261050,0.0751,86324.0,86323.0,0.1488648]
[1741446261344,0.0751,86324.0,86323.0,0.1821648]
[1741446261345,0.0346,86324.0,86323.0,0.1821648]
[1741446261555,0.0326,86324.0,86323.0,0.1821648]
[1741446262152,0.0652,86324.0,86323.0,0.1821648]
[1741446262353,0.0652,86324.0,86323.0,1.19452638]
[1741446262963,0.0326,86324.0,86323.0,1.19452638]
[1741446263858,0.0356,86324.0,86323.0,1.19552638]
[1741446264557,0.003,86324.0,86323.0,1.19552638]
[1741446264757,0.003,86324.0,86323.0,1.55532638]
[1741446265064,0.00890251,86325.0,86324.0,0.1158634]
[1741446265362,0.00017372,86332.0,86331.0,0.115854]
[1741446265664,0.00017372,86332.0,86331.0,1.48901558]
[1741446266261,0.00017372,86332.0,86331.0,2.06181558]
[1741446266262,0.00886746,86332.0,86331.0,2.06181558]
[1741446266455,0.00017372,86332.0,86331.0,2.06181558]
[1741446266954,0.00017372,86332.0,86331.0,1.91181558]
[1741446267963,0.00017372,86332.0,86331.0,1.91281558]
[1741446270461,0.00867498,86332.0,86331.0,1.91281558]
[1741446270870,0.00867498,86332.0,86331.0,1.91381558]
[1741446271460,0.00867498,86332.0,86331.0,1.99313558]
[1741446271860,0.05867498,86332.0,86331.0,1.99313558]
[1741446272261,0.05867498,86332.0,86331.0,1.91381558]
[1741446274871,0.00867498,86332.0,86331.0,1.91381558]
[1741446276074,0.0325,86348.0,86347.0,0.1158326]
[1741446276266,0.0325,86348.0,86347.0,1.48899418]
[1741446277972,0.00017372,86356.0,86355.0,0.1158218]
[1741446278274,0.03197372,86356.0,86355.0,0.4766218]
[1741446279069,0.03197372,86356.0,86355.0,0.5405218]
[1741446279265,0.06447372,86356.0,86355.0,0.5405218]
[1741446280076,0.07319093,86356.0,86355.0,0.5089218]
[1741446280473,0.07319093,86356.0,86355.0,0.1481218]
[1741446280675,0.07319093,86356.0,86355.0,0.1158218]
[1741446280973,0.17319093,86356.0,86355.0,0.1158218]
[1741446282075,0.22319093,86356.0,86355.0,0.1158218]
[1741446282274,0.22319093,86356.0,86348.0,0.0579151]
[1741446282479,0.0316,86355.0,86350.0,0.1158278]
[1741446282677,0.3608,86353.0,86350.0,0.1158278]
[1741446282980,0.3608,86353.0,86349.0,0.00128]
[1741446282981,0.0629,86352.0,86349.0,0.00128]
[1741446283175,0.0629,86352.0,86347.0,0.00017372]
[1741446283376,0.0629,86352.0,86349.0,0.1158286]
[1741446284082,0.1,86349.0,86348.0,0.1158305]
[1741446284381,0.15,86349.0,86347.0,0.00017372]
[1741446284582,0.0639,86348.0,86347.0,0.11600592]
[1741446285280,0.1639,86348.0,86347.0,0.00017372]
[1741446285475,0.0682,86348.0,86347.0,0.00017372]
[1741446285780,0.1639,86348.0,86347.0,0.00017372]
[1741446288169,0.1639,86348.0,86347.0,0.11600632]
[1741446290380,0.1659,86348.0,86347.0,0.11600632]
[1741446290582,0.1659,86348.0,86347.0,0.00017372]
[1741446290792,0.1659,86348.0,86346.0,0.1158338]
[1741446291875,0.0659,86348.0,86347.0,1.12819418]
[1741446292075,0.0639,86348.0,86347.0,1.48899418]
[1741446292283,0.0659,86348.0,86347.0,1.48899418]
[1741446292888,0.1159,86348.0,86347.0,1.48899418]
[1741446293775,0.1159,86348.0,86347.0,1.48999418]
[1741446294380,0.1159,86348.0,86347.0,1.48899418]
[1741446295383,0.1139,86348.0,86347.0,1.48899418]
[1741446295579,0.1159,86348.0,86347.0,1.48899418]
[1741446296789,0.1149,86348.0,86347.0,1.48899418]
[1741446298482,0.5083,86348.0,86347.0,0.001]
[1741446298686,0.65502,86348.0,86347.0,0.00020885]
[1741446299183,0.60012,86348.0,86347.0,0.00020885]
[1741446299389,0.65502,86348.0,86347.0,0.00020885]
[1741446299576,0.60012,86348.0,86347.0,0.00020885]
[1741446299780,0.65502,86348.0,86347.0,0.00020885]
[1741446300081,0.60012,86348.0,86325.0,0.361]
[1741446300283,0.05,86342.0,86331.0,0.3608]
[1741446300486,0.0958,86341.0,86333.0,1.01236158]
[1741446301581,0.1409,86341.0,86333.0,1.01236158]
[1741446301780,0.1409,86341.0,86331.0,0.3618]
[1741446301781,0.0043,86337.0,86331.0,0.3608]
[1741446301981,0.0951,86337.0,86331.0,0.3618]
[1741446302180,0.063,86336.0,86333.0,0.1158506]
[1741446302381,0.00487018,86335.0,86333.0,0.0796062]
[1741446302589,0.00487018,86335.0,86331.0,0.4197267]
[1741446302882,0.06607018,86334.0,86333.0,0.1158509]
[1741446303081,0.10647018,86334.0,86333.0,0.1158509]
[1741446303286,0.10647018,86334.0,86333.0,1.12821248]
[1741446303287,0.1016,86334.0,86333.0,1.12821248]
[1741446303483,0.0612,86334.0,86333.0,1.12821248]
[1741446303683,0.0612,86334.0,86333.0,1.16151248]
[1741446303975,0.0938,86334.0,86331.0,0.002]
[1741446304179,0.1612,86334.0,86331.0,0.002]
[1741446304376,0.1612,86334.0,86331.0,0.117853]
[1741446304576,0.1612,86334.0,86331.0,0.001]
[1741446304981,0.0612,86334.0,86329.0,0.0333]
[1741446305184,0.0612,86334.0,86333.0,0.1158514]
[1741446305491,0.0612,86334.0,86333.0,1.12821298]
[1741446305986,0.0622,86334.0,86333.0,1.12821298]
[1741446306177,0.0622,86334.0,86333.0,1.16121298]
[1741446306889,0.0314,86334.0,86333.0,1.16121298]
[1741446308192,0.001,86334.0,86333.0,1.16121298]
[1741446309893,0.0334,86336.0,86335.0,0.1158487]
[1741446310089,0.0667,86336.0,86335.0,1.12821028]
[1741446310293,0.1118,86336.0,86335.0,1.12821028]
[1741446310493,0.1444,86336.0,86333.0,0.034]
[1741446310693,0.0667,86336.0,86335.0,0.1158487]
[1741446311093,0.05,86337.0,86336.0,0.1158473]
[1741446311289,0.05,86337.0,86336.0,1.19070888]
[1741446314083,0.34611681,86341.0,86340.0,0.115842]
[1741446314389,0.39611681,86341.0,86340.0,1.12820358]
[1741446315088,0.39611681,86341.0,86340.0,1.19010358]
[1741446315490,0.39811681,86341.0,86340.0,1.19010358]
[1741446315896,0.34811681,86341.0,86340.0,1.19010358]
[1741446316200,0.002,86341.0,86340.0,1.19010358]
[1741446316497,0.0317,86357.0,86355.0,0.1158218]
[1741446316691,0.0624,86357.0,86355.0,1.12818338]
[1741446317092,0.07129093,86356.0,86355.0,1.12818338]
[1741446317497,0.07129093,86356.0,86355.0,1.18958338]
[1741446317700,0.04059093,86356.0,86355.0,1.18958338]
[1741446318688,0.04059093,86356.0,86355.0,1.20259063]
[1741446319503,0.04059093,86356.0,86355.0,1.18958338]
[1741446319707,0.04059093,86356.0,86355.0,1.20227624]
[1741446320393,0.04059093,86356.0,86355.0,1.18958338]
[1741446321804,0.04059093,86356.0,86355.0,1.55038338]
[1741446322103,0.04059093,86356.0,86355.0,1.5633055]
[1741446323699,0.04059093,86356.0,86355.0,1.55038338]
[1741446323905,0.04059093,86356.0,86355.0,1.55138338]
[1741446324904,0.04059093,86356.0,86355.0,1.56495491]
[1741446325108,0.04059093,86356.0,86355.0,1.55238338]
[1741446326306,0.09059093,86356.0,86355.0,1.52088338]
[1741446327599,0.09059093,86356.0,86355.0,1.51988338]
[1741446328700,0.09059093,86356.0,86355.0,1.48898338]
[1741446329404,0.12319093,86356.0,86355.0,0.3608]
[1741446329611,0.19059093,86356.0,86355.0,0.3608]
[1741446329909,0.19059093,86356.0,86355.0,0.4766218]
[1741446330104,0.19059093,86356.0,86355.0,0.3608]
[1741446330305,0.16569093,86356.0,86355.0,0.3608]
[1741446330505,0.19059093,86356.0,86355.0,0.3608]
[1741446331409,0.57649093,86356.0,86350.0,0.1158282]
[1741446331605,0.0812,86355.0,86352.0,0.07958645]
[1741446331795,0.08601652,86355.0,86348.0,0.361]
[1741446331999,0.0306,86354.0,86350.0,1.01236158]
[1741446332406,0.0312,86353.0,86352.0,0.1158259]
[1741446332607,0.04374226,86353.0,86351.0,0.1158259]
[1741446332810,0.0303,86352.0,86351.0,0.1158259]
[1741446333005,0.0303,86352.0,86350.0,0.00128]
[1741446333308,0.0641,86351.0,86350.0,0.1158286]
[1741446333609,0.1141,86351.0,86350.0,0.1158286]
[1741446333812,0.1444,86351.0,86350.0,0.1158286]
[1741446334312,0.177,86351.0,86332.0,0.1158522]
[1741446334513,0.1,86334.0,86325.0,0.3608]
[1741446334702,0.1,86334.0,86332.0,0.1158518]
[1741446334703,0.1957,86333.0,86332.0,0.1158518]
[1741446334903,0.1283,86333.0,86330.0,0.1158552]
[1741446335108,0.1957,86333.0,86332.0,1.01236158]
[1741446335608,0.0957,86333.0,86332.0,1.19051428]
[1741446337203,0.0957,86333.0,86332.0,1.55131428]
[1741446337515,0.0957,86333.0,86332.0,1.55331428]
[1741446337711,0.0957,86333.0,86332.0,1.565655]
[1741446337904,0.0957,86333.0,86332.0,1.563655]
[1741446339709,0.0957,86333.0,86332.0,1.565655]
[1741446340412,0.0957,86333.0,86332.0,1.563655]
[1741446344217,0.0957,86333.0,86332.0,1.564655]
[1741446346211,0.0957,86333.0,86332.0,0.001]
[1741446346401,0.2208,86333.0,86332.0,0.001]
[1741446346607,0.2208,86333.0,86325.0,0.4766611]
[1741446346804,0.1,86327.0,86325.0,0.3608]
[1741446347013,0.0647,86326.0,86325.0,0.3608]
[1741446347219,0.1647,86326.0,86325.0,0.3608]
[1741446347512,0.5255,86326.0,86321.0,0.78056]
[1741446347819,0.5255,86326.0,86321.0,0.77928]
[1741446348111,0.05,86324.0,86321.0,0.77928]
[1741446348417,0.5255,86326.0,86311.0,1.01236158]
[1741446348418,0.0657,86323.0,86311.0,1.01236158]
[1741446348717,0.3608,86314.0,86309.0,0.1158829]
[1741446348921,0.0657,86313.0,86307.0,1.01364158]
[1741446349219,0.1,86310.0,86302.0,0.1158925]
[1741446349415,0.3608,86304.0,86303.0,0.1158906]
[1741446349621,0.05,86304.0,86301.0,0.05968503]
[1741446349811,0.05,86304.0,86302.0,0.115893]
[1741446349812,0.0634,86303.0,86302.0,0.115893]
[1741446350207,0.06827461,86303.0,86302.0,1.0919961]
[1741446350409,0.06827461,86303.0,86302.0,0.07963452]
[1741446350711,0.09877461,86303.0,86302.0,0.08363452]
[1741446351223,0.0939,86303.0,86302.0,0.08363452]
[1741446351613,0.05,86304.0,86303.0,0.1158916]
[1741446351820,0.0121161,86313.0,86312.0,0.1158796]
[1741446352114,0.1423,86319.0,86318.0,0.1158715]
[1741446352316,0.1423,86319.0,86318.0,1.12823308]
[1741446352627,0.0326,86314.0,86313.0,0.1158781]
[1741446352812,0.0826,86314.0,86313.0,0.1158781]
[1741446353820,0.0826,86314.0,86300.0,0.4608]
[1741446353821,0.4434,86314.0,86300.0,0.4608]
[1741446354121,0.0623,86313.0,86302.0,1.27293482]
[1741446354424,0.0623,86313.0,86312.0,0.1158796]
[1741446354721,0.1123,86313.0,86312.0,0.1158796]
[1741446355813,0.1123,86313.0,86312.0,0.1168796]
[1741446356321,0.1123,86313.0,86312.0,0.1158796]
[1741446358015,0.1133,86313.0,86312.0,0.1158796]
[1741446360514,0.1133,86313.0,86312.0,0.06512511]
[1741446360910,0.11808393,86313.0,86312.0,0.06512511]
[1741446361226,0.21140703,86313.0,86312.0,0.1158796]
[1741446362924,0.2066231,86313.0,86312.0,0.1158796]
[1741446363523,0.2066231,86313.0,86312.0,0.1491796]
[1741446364422,0.1133,86313.0,86312.0,0.1491796]
[1741446364622,0.1133,86313.0,86312.0,0.1158796]
[1741446365212,0.1133,86313.0,86312.0,0.1491796]
[1741446365624,0.1133,86313.0,86312.0,0.1158796]
[1741446371329,0.051,86313.0,86312.0,1.12824118]
[1741446371628,0.001,86313.0,86312.0,1.12824118]
[1741446371826,0.051,86313.0,86312.0,0.1793796]
[1741446372415,0.0553,86313.0,86312.0,0.1158796]
[1741446373340,0.18278,86313.0,86302.0,0.0579463]
[1741446373631,0.18278,86313.0,86302.0,0.115893]
[1741446373632,0.0326,86303.0,86302.0,0.115893]
[1741446373930,0.0826,86303.0,86302.0,0.115893]
[1741446374732,0.15,86303.0,86302.0,0.115893]
[1741446374924,0.15,86303.0,86302.0,0.116893]
[1741446375320,0.15,86303.0,86302.0,0.001]
[1741446375625,0.08156949,86303.0,86300.0,0.05023446]
[1741446375827,0.183,86302.0,86300.0,0.05023446]
[1741446376029,0.1713365,86302.0,86301.0,0.07963053]
[1741446376222,0.07941784,86302.0,86301.0,0.07963053]
[1741446376428,0.07941784,86302.0,86300.0,0.08093446]
[1741446376629,0.07941784,86302.0,86301.0,0.1479943]
[1741446376833,0.08445524,86302.0,86301.0,0.1479943]
[1741446377037,0.07335524,86302.0,86301.0,0.1786943]
[1741446377822,0.0040374,86302.0,86301.0,1.55185588]
[1741446378727,0.0540374,86302.0,86301.0,1.55185588]
[1741446379125,0.05,86302.0,86301.0,1.55185588]
[1741446379832,0.052,86302.0,86301.0,1.55185588]
[1741446380030,0.05222811,86302.0,86301.0,1.55185588]
[1741446380234,0.05422811,86302.0,86301.0,1.55185588]
[1741446381133,0.05222811,86302.0,86301.0,1.19105588]
[1741446381437,0.05322811,86302.0,86301.0,0.1479943]
[1741446381630,0.05322811,86302.0,86300.0,0.05023446]
[1741446381827,0.0661,86301.0,86300.0,0.16613016]
[1741446382236,0.1661,86301.0,86300.0,0.05023446]
[1741446383035,0.2161,86301.0,86300.0,0.05023446]
[1741446383532,0.2171,86301.0,86300.0,0.05023446]
[1741446384229,0.1671,86301.0,86300.0,0.05023446]
[1741446384434,0.2171,86301.0,86300.0,0.05023446]
[1741446384632,0.1671,86301.0,86300.0,0.05023446]
[1741446384931,0.1094,86301.0,86300.0,0.05023446]
[1741446385134,0.1671,86301.0,86300.0,0.05023446]
[1741446385725,0.1096,86301.0,86300.0,0.05023446]
[1741446385930,0.1681,86301.0,86300.0,0.05023446]
[1741446386433,0.1681,86301.0,86300.0,0.00910726]
[1741446388028,0.1681,86301.0,86300.0,0.12500296]
[1741446388233,0.1681,86301.0,86300.0,0.00910726]
[1741446388731,0.0681,86301.0,86300.0,1.13736454]
[1741446389335,0.0671,86301.0,86300.0,1.13736454]
[1741446389527,0.0681,86301.0,86300.0,0.12500296]
[1741446389929,0.0671,86301.0,86300.0,0.12500296]
[1741446390129,0.0681,86301.0,86300.0,0.12500296]
[1741446390431,0.0701,86301.0,86300.0,0.12500296]
[1741446391024,0.0701,86301.0,86300.0,1.13736454]
[1741446392829,0.0691,86301.0,86300.0,1.13736454]
[1741446393027,0.0721,86301.0,86300.0,1.13736454]
[1741446393537,0.0711,86301.0,86300.0,1.13736454]
[1741446394030,0.0721,86301.0,86300.0,1.13736454]
[1741446394236,0.0711,86301.0,86300.0,1.13736454]
[1741446394738,0.0701,86301.0,86300.0,1.13736454]
[1741446394930,0.0701,86301.0,86300.0,1.16976454]
[1741446395236,0.0691,86301.0,86300.0,1.16976454]
[1741446395845,0.0681,86301.0,86300.0,1.16976454]
[1741446396037,0.4289,86301.0,86300.0,1.16976454]
[1741446396541,0.4279,86301.0,86300.0,1.16976454]
[1741446396929,0.4269,86301.0,86300.0,1.13736454]
[1741446397131,0.4289,86301.0,86300.0,1.13736454]
[1741446398734,0.0681,86301.0,86300.0,1.13736454]
[1741446398935,0.16167965,86301.0,86300.0,1.13736454]
[1741446399130,0.16167965,86301.0,86300.0,1.16786454]
[1741446400240,0.15967965,86301.0,86300.0,1.16786454]
[1741446400440,0.12857965,86301.0,86300.0,1.16786454]
[1741446401039,0.12857965,86301.0,86300.0,1.19996454]
[1741446401342,0.036,86301.0,86300.0,1.19996454]
[1741446403044,0.036,86301.0,86300.0,1.21247743]
[1741446403631,0.035,86301.0,86300.0,1.21247743]
[1741446403834,0.036,86301.0,86300.0,1.21247743]
[1741446404230,0.003,86301.0,86300.0,1.21247743]
[1741446404430,0.09257965,86307.0,86306.0,0.1158876]
[1741446404638,0.09257965,86307.0,86306.0,1.48904918]
[1741446405040,5e-08,86307.0,86306.0,1.74562242]
[1741446405249,5e-08,86307.0,86306.0,1.80862242]
[1741446406138,0.00100005,86307.0,86306.0,1.80862242]
[1741446407944,0.001,86307.0,86306.0,1.80862242]
[1741446412240,0.00875751,86319.0,86306.0,1.80862242]
[1741446412442,0.00017372,86320.0,86319.0,0.1158702]
[1741446412646,0.00017372,86320.0,86319.0,1.12823178]
[1741446412858,0.00017372,86320.0,86319.0,1.22613178]
[1741446413354,0.0090295,86320.0,86319.0,1.22613178]
[1741446413949,0.0430295,86320.0,86319.0,1.22613178]
[1741446415050,0.3608,86338.0,86330.0,0.0579271]
[1741446415051,0.29035625,86333.0,86330.0,0.0579271]
[1741446415255,0.29035625,86333.0,86332.0,0.1158527]
[1741446415444,0.29035625,86333.0,86332.0,1.12821428]
[1741446415758,0.29035625,86333.0,86332.0,1.19061428]
[1741446416646,0.29035625,86333.0,86332.0,1.20330755]
[1741446416846,0.29335625,86333.0,86332.0,1.20330755]
[1741446417247,0.30197016,86333.0,86332.0,1.20330755]
[1741446417841,0.35197016,86333.0,86332.0,1.17300755]
[1741446418256,0.06161391,86333.0,86332.0,1.17300755]
[1741446420659,0.01161391,86333.0,86332.0,1.17300755]
[1741446428252,0.0658,86336.0,86332.0,1.05715485]
[1741446428457,0.00017372,86341.0,86332.0,1.05715485]
[1741446428458,0.00017372,86341.0,86340.0,0.115842]
[1741446428657,2e-08,86341.0,86340.0,1.57168358]
[1741446429261,2e-08,86341.0,86340.0,1.63498358]
[1741446429456,0.00861275,86341.0,86340.0,1.63498358]
[1741446429666,2e-08,86341.0,86340.0,1.63498358]
[1741446430161,0.36080002,86341.0,86340.0,0.115842]
[1741446430365,0.41080002,86341.0,86340.0,0.115842]
[1741446433257,0.51080002,86341.0,86340.0,0.115842]
[1741446433659,0.52340208,86341.0,86340.0,0.115842]
[1741446433866,0.42340208,86341.0,86340.0,0.115842]
[1741446438659,0.52340208,86341.0,86340.0,0.115842]
[1741446439069,0.42340208,86341.0,86340.0,0.115842]
[1741446439464,0.52340208,86341.0,86340.0,0.115842]
[1741446439661,0.42340208,86341.0,86340.0,0.115842]
[1741446440877,0.52340208,86341.0,86340.0,0.115842]
[1741446441560,0.43340208,86341.0,86340.0,0.115842]
[1741446443370,0.42080002,86341.0,86340.0,0.115842]
[1741446443570,0.45180002,86341.0,86340.0,0.115842]
[1741446443964,0.48270002,86341.0,86340.0,0.115842]
[1741446447261,0.47270002,86341.0,86340.0,0.115842]
[1741446447776,0.11190002,86341.0,86340.0,0.115842]
[1741446447969,0.11190002,86341.0,86340.0,0.148942]
[1741446449373,0.11190002,86341.0,86340.0,0.115842]
[1741446450377,0.21190002,86341.0,86340.0,0.115842]
[1741446450677,0.11190002,86341.0,86340.0,0.115842]
[1741446455783,0.21190002,86341.0,86340.0,0.115842]
[1741446455973,0.11190002,86341.0,86340.0,0.115842]
[1741446459677,0.21190002,86341.0,86340.0,0.115842]
[1741446461184,0.21190002,86341.0,86330.0,0.01214477]
[1741446461383,0.7216,86333.0,86330.0,0.01214477]
[1741446461588,0.7216,86333.0,86325.0,0.1158613]
[1741446461589,0.0971,86332.0,86325.0,0.1158615]
[1741446461780,0.3608,86326.0,86325.0,0.1158615]
[1741446461980,0.5108,86326.0,86325.0,0.1158615]
[1741446462484,0.4108,86326.0,86325.0,0.1158615]
[1741446462682,0.5108,86326.0,86325.0,0.1482615]
[1741446463375,0.5108,86326.0,86325.0,0.1158615]
[1741446464391,0.4526,86326.0,86325.0,0.1158615]
[1741446464689,0.5108,86326.0,86325.0,0.1158615]
[1741446464882,0.5108,86326.0,86325.0,0.1486615]
[1741446465085,0.4526,86326.0,86325.0,0.1486615]
[1741446465389,0.5108,86326.0,86325.0,0.1486615]
[1741446466096,0.52280461,86326.0,86325.0,0.1486615]
[1741446470696,0.16200461,86326.0,86325.0,0.1486615]
[1741446470905,0.52280461,86326.0,86325.0,0.1486615]
[1741446471592,0.52280461,86326.0,86325.0,0.1158615]
[1741446471794,0.52280461,86326.0,86323.0,0.0908319]
[1741446471991,0.0328,86325.0,86323.0,0.0329]
[1741446472193,0.0657,86325.0,86324.0,0.11603712]
[1741446472790,0.0657,86325.0,86324.0,0.14983712]
[1741446472991,0.1657,86325.0,86324.0,0.14983712]
[1741446473492,0.0657,86325.0,86324.0,0.14983712]
[1741446473693,0.1657,86325.0,86324.0,0.14983712]
[1741446477193,0.5265,86325.0,86324.0,0.14983712]
[1741446477700,0.1657,86325.0,86324.0,0.14983712]
[1741446477901,0.5265,86325.0,86324.0,0.14983712]
[1741446478707,0.7189,86325.0,86324.0,0.14983712]
[1741446479001,0.5265,86325.0,86324.0,0.14983712]
[1741446480406,0.4265,86325.0,86324.0,0.14983712]
[1741446486193,0.0328,86325.0,86324.0,1.17454665]
[1741446486398,0.41140001,86326.0,86325.0,0.1158621]
[1741446486608,0.4108,86326.0,86325.0,1.19432368]
[1741446487197,0.05,86326.0,86325.0,1.19432368]
[1741446489613,0.05,86326.0,86325.0,1.12822368]
[1741446490102,0.05,86326.0,86325.0,1.19402368]
[1741446490410,0.2138,86326.0,86325.0,1.19402368]
[1741446490609,0.1138,86326.0,86325.0,1.19402368]
[1741446493704,0.4746,86326.0,86325.0,1.19402368]
[1741446496317,0.05,86326.0,86325.0,1.19402368]
[1741446497414,0.05,86326.0,86325.0,1.19352368]
[1741446502516,0.05,86332.0,86325.0,1.07816158]
[1741446502716,0.031,86335.0,86334.0,0.11585]
[1741446503114,0.031,86335.0,86334.0,1.12821158]
[1741446503811,0.031,86335.0,86334.0,1.14031828]
[1741446504618,0.0305,86336.0,86335.0,0.1158487]
[1741446504825,0.0331,86340.0,86339.0,0.1158433]
[1741446505123,0.065,86340.0,86339.0,1.12820488]
[1741446509218,0.0319,86340.0,86339.0,1.12820488]
[1741446509929,2e-08,86341.0,86340.0,0.115842]
[1741446510121,2e-08,86341.0,86340.0,1.12820358]
[1741446511826,2e-08,86341.0,86340.0,1.48900358]
[1741446513934,2e-08,86341.0,86340.0,1.74557682]
[1741446514529,2e-08,86341.0,86340.0,1.82617682]
[1741446515732,0.0326,86353.0,86340.0,1.86033482]
[1741446515947,0.063,86365.0,86364.0,0.1158098]
[1741446516434,0.063,86365.0,86364.0,1.12817138]
[1741446516626,0.031,86365.0,86364.0,1.12817138]
[1741446516938,0.031,86365.0,86364.0,1.14035746]
[1741446518427,0.0332,86366.0,86364.0,1.14035746]
[1741446518428,0.0332,86366.0,86365.0,0.1158084]
[1741446518625,0.0332,86366.0,86365.0,1.15846998]
[1741446519927,0.0336,86369.0,86368.0,0.1158044]
[1741446520135,0.0336,86369.0,86368.0,1.12816598]
[1741446521426,0.04227936,86369.0,86368.0,1.15846598]
[1741446524926,0.04227936,86369.0,86368.0,1.19086598]
[1741446525833,0.00867936,86369.0,86368.0,1.19086598]
[1741446526033,0.0333,86371.0,86370.0,0.1158017]
[1741446526235,0.0333,86371.0,86370.0,1.12816328]
[1741446529747,0.0652,86371.0,86370.0,1.12916328]
[1741446530249,0.426,86371.0,86370.0,1.12916328]
[1741446530639,0.426,86371.0,86370.0,0.1168017]
[1741446530640,0.476,86371.0,86370.0,0.1168017]
[1741446530956,0.486,86371.0,86370.0,0.001]
[1741446531245,0.486,86371.0,86370.0,0.1168017]
[1741446532046,0.486,86371.0,86370.0,0.001]
[1741446532240,0.576,86371.0,86370.0,0.001]
[1741446532641,0.58827317,86371.0,86370.0,0.001]
[1741446532834,0.49777317,86371.0,86370.0,0.001]
[1741446533039,0.48827317,86371.0,86370.0,0.1168017]
[1741446533739,0.43827317,86371.0,86370.0,0.1168017]
[1741446534549,0.43827317,86371.0,86370.0,0.001]
[1741446534747,0.43827317,86371.0,86370.0,0.1168017]
[1741446535340,0.48827317,86371.0,86370.0,0.1168017]
[1741446535741,0.53827317,86371.0,86370.0,0.1168017]
[1741446536251,0.54777317,86371.0,86370.0,0.1168017]
[1741446536751,0.54777317,86371.0,86370.0,0.1158017]
[1741446537343,0.63827317,86371.0,86370.0,0.1158017]
[1741446537747,0.63827317,86371.0,86367.0,0.0579028]
[1741446538153,0.63827317,86371.0,86370.0,0.1158017]
[1741446539049,0.63827317,86371.0,86368.0,0.0579021]
[1741446539353,0.63827317,86371.0,86370.0,0.1158017]
[1741446543149,0.63827317,86371.0,86360.0,0.0336]
[1741446543347,0.05,86365.0,86364.0,0.1158098]
[1741446543549,0.2,86365.0,86364.0,0.1158098]
[1741446545447,0.2,86365.0,86364.0,0.1803098]
[1741446546050,0.2,86365.0,86364.0,0.19215026]
[1741446548052,0.2,86365.0,86364.0,0.1803098]
[1741446548256,0.2,86365.0,86364.0,0.1476098]